Cogmind - Beta 10.2 @@@ ROGUE MODE // 2021.01.29 @ 06:19:06 Player: Venlin Result: Destroyed by as-61121 with Assembled Heavy Rifle Performance ------------- Evolutions (0) 0 Regions Visited (2) 400 Robots Destroyed (9) 45 Value Destroyed (109) 109 Prototype IDs (0) 0 Alien Tech Used (0) 0 Bonus (0) 0 TOTAL SCORE: 554 Bonus ------- None Cogmind --------- Core Integrity 0/250 Matter 300/300 Energy 125/125 System Corruption 0% Temperature Cool (0) Movement Flying (37) Location -10/Mines Parts ------- > --- POWER (1) -------- Light Ion Engine > --- PROPULSION (2) --- Flight Unit Flight Unit > --- UTILITY (2) ------ Small Storage Unit > --- WEAPON (2) ------- (None) > --- INVENTORY (6) ---- (None) Peak State ------------ > --- POWER ------------ Ion Engine > --- PROPULSION ------- Light Treads Light Treads > --- UTILITY ---------- Small Storage Unit > --- WEAPON ----------- EM Pulse Gun Light Assault Rifle > --- INVENTORY -------- (None) [Rating: 6] Favorites ----------- Power Ion Engine Engine Ion Engine Propulsion Light Treads Treads Light Treads Flight Unit Flight Unit Utility Small Storage Unit Device Tractor Beam Storage Small Storage Unit Weapon Light Assault Rifle Energy Gun EM Pulse Gun Ballistic Gun Light Assault Rifle Build | -11 -10 -10 ------- Run | Scr Mat Min Slots Evolved . | . . . Power . | . . . Propulsion . | . . . Utility . | . . . Weapon . | . . . Parts Attached 13 | 7 . 6 Power 2 | 1 . 1 Engine 2 | 1 . 1 Core . | . . . Reactor . | . . . Propulsion 4 | 2 . 2 Treads 2 | 2 . . Leg . | . . . Wheel . | . . . Hover . | . . . Flight 2 | . . 2 Utility 3 | 2 . 1 Device 1 | . . 1 Storage 2 | 2 . . Processor . | . . . Hackware . | . . . Protection . | . . . Artifact . | . . . Weapon 4 | 2 . 2 Energy Gun 3 | 1 . 2 Energy Cannon . | . . . Ballistic Gun 1 | 1 . . Ballistic Cannon . | . . . Launcher . | . . . Special Weapon . | . . . Impact Weapon . | . . . Slashing Weapon . | . . . Piercing Weapon . | . . . Special Melee Weapon . | . . . Unidentified Prototypes . | . . . Parts Lost 7 | . . 7 Power 1 | . . 1 Propulsion 1 | . . 1 Utility 1 | . . 1 Weapon 4 | . . 4 Highest Loss Streak 6 | . . 6 Average Slot Usage (%) 76 | . 85 68 Engine 12 | . 14 10 Treads 20 | . 28 12 Flight 5 | . . 10 Device 2 | . . 4 Storage 14 | . 14 14 Energy Gun 11 | . 14 8 Ballistic Gun 10 | . 14 7 Naked Turns . | . . . Heaviest Build 12 | 12 12 12 Greatest Support 40 | 40 40 40 Greatest Overweight (x) 1 | . . 1 Average Overweight (x) . | . . . Largest Inventory Capacity 6 | 6 6 6 Average Capacity 5 | 5 6 6 Most Carried 4 | 4 3 4 Average Carried 1 | 1 1 1 Final Capacity 6 | 6 6 6 Final Carried 3 | 1 3 . Class Distribution -------------------- 86% | Mutant 13% | Scavenger-Mutant Dominant Class ---------------- Mutant | -10/Materials Mutant | -10/Mines Resources | -11 -10 -10 ----------- Run | Scr Mat Min Matter Collected 360 | 280 12 68 Remotely 40 | . . 40 Salvage Created 405 | 152 159 94 Parts 18 | 6 6 6 Haulers Intercepted . | . . . Recyclers Shooed . | . . . Parts Field Recycled . | . . . Retrieved Matter . | . . . Parts Self-Destructed . | . . . Prevented . | . . . Kills | -11 -10 -10 ------- Run | Scr Mat Min Combat Hostiles Destroyed 7 | . 2 5 Melee 1 | . . 1 Guns 6 | . 2 4 Classes Destroyed 6 | 3 1 2 Worker 2 | 2 . . Tunneler 1 | 1 . . Recycler 2 | 1 1 . Swarmer 2 | . . 2 Grunt 2 | . 2 . Assembled 3 | . . 3 Best Kill Streak 3 | 2 3 3 Combat Bots Only 3 | . 2 3 Max Kills in Single Turn 1 | 1 1 1 Gunslinging . | . . . Exploded . | . . . Melee 1 | . . 1 Uniques/NPCs Destroyed . | . . . Combat | -11 -10 -10 -------- Run | Scr Mat Min Damage Taken 955 | . 76 879 Core 255 | . 22 233 Absorbed by Shields . | . . . Core Remaining (%) 100 | 100 . . Volleys Fired 47 | 10 13 24 Largest 2 | 2 2 2 Hottest 60 | 60 60 60 Shots Fired 90 | 20 26 44 Gun 90 | 20 26 44 Cannon . | . . . Launcher . | . . . Special . | . . . Kinetic 43 | 10 13 20 Thermal 11 | . . 11 Explosive . | . . . Electromagnetic 36 | 10 13 13 Robot Hit Streak 12 | 5 12 5 Robot Miss Streak 3 | 2 3 2 Penetration Max . | . . . Secondary Targets . | . . . Shots Hit Robots 47 | 10 19 18 Core Hits 24 | 6 5 13 Critical Hits . | . . . Critical Kills . | . . . Critical Parts Destroyed . | . . . Melee Attacks . | . . . Impact . | . . . Slashing . | . . . Piercing . | . . . Sneak Attacks . | . . . Combat Hostiles . | . . . Follow-up Attacks . | . . . Damage Inflicted 500 | 112 183 205 Guns 489 | 112 183 194 Cannons . | . . . Explosions . | . . . Melee . | . . . Ramming 11 | . . 11 Kinetic 171 | 32 61 78 Thermal 46 | . . 46 Explosive . | . . . Electromagnetic 272 | 80 122 70 Impact . | . . . Slashing . | . . . Piercing . | . . . Highest Corruption . | . . . Average Corruption . | . . . Corruption Purged . | . . . Overload Shots . | . . . Overflow Damage . | . . . Projectiles . | . . . Explosions . | . . . Melee . | . . . Knockbacks . | . . . Impact . | . . . Kinetic . | . . . Secondary . | . . . Self-Inflicted Damage 4 | . . 4 Shots . | . . . Rammed 5 | . . 5 Targets Rammed 5 | . . 5 Kicked . | . . . Crushed . | . . . Highest Temperature 82 | 40 82 82 Average Temperature 29 | 17 35 31 Received Heat Transfer 182 | . 42 140 Siege Activations . | . . . Robots Corrupted . | . . . Combat Hostiles . | . . . Parts Fried 1 | . 1 . Impact Corruptions . | . . . Robots Melted . | . . . Combat Hostiles . | . . . Parts Melted . | . . . Heat Transferred 100 | . . 100 Parts Sabotaged . | . . . Parts Stolen . | . . . Parts Stripped . | . . . Power Chain Reactions . | . . . Missiles Intercepted . | . . . Alert | -11 -10 -10 ------- Run | Scr Mat Min Peak Influence 112 | 20 112 108 Initial 43 | . 13 43 Average 42 | 8 37 73 Maximum Alert Level . | . . . Low Security (%) 100 | 100 100 100 Level 1 . | . . . Level 2 . | . . . Level 3 . | . . . Level 4 . | . . . Level 5 . | . . . High Security . | . . . Max Security . | . . . Squads Dispatched 3 | . 3 . Investigation 1 | . 1 . Extermination . | . . . Reinforcement 2 | . 2 . Assault . | . . . Garrison . | . . . Intercept . | . . . Construction Impeded . | . . . Haulers Reinforced . | . . . Stealth | -11 -10 -10 --------- Run | Scr Mat Min Distress Signals 1 | . . 1 Communications Jammed . | . . . Distress Signals . | . . . Times Spotted 18 | . 4 14 Peak Tracking Total 6 | . 1 6 Tactical Retreats 5 | . . 5 Traps | -11 -10 -10 ------- Run | Scr Mat Min Traps Triggered 1 | . 1 . Indirectly . | . . . Trap Hack Attempts . | . . . Triggered . | . . . Disarmed . | . . . Reprogrammed . | . . . Reused . | . . . Traps Extracted . | . . . Installed . | . . . Triggered . | . . . Machines | -11 -10 -10 ---------- Run | Scr Mat Min Machines Disabled . | . . . Max in Single Turn . | . . . Machines Sabotaged . | . . . Garrisons Compromised . | . . . Overloaded Fab Kills . | . . . Fab Network Shutdowns . | . . . Hacking | -11 -10 -10 --------- Run | Scr Mat Min Machines Accessed 1 | . 1 . Terminals 1 | . 1 . Fabricators . | . . . Repair Stations . | . . . Recycling Units . | . . . Scanalyzers . | . . . Garrison Access . | . . . Total Hacks 2 | . 2 . Successful 1 | . 1 . Failed 1 | . 1 . Catastrophic . | . . . Database Lockouts . | . . . Manual . | . . . Terminals 2 | . 2 . Fabricators . | . . . Repair Stations . | . . . Recycling Units . | . . . Scanalyzers . | . . . Garrison Access . | . . . Terminal Hacks 1 | . 1 . Zone Layout 1 | . 1 . Fabricator Hacks . | . . . Repair Station Hacks . | . . . Recycling Unit Hacks . | . . . Scanalyzer . | . . . Garrison Access Hacks . | . . . Unauthorized Hacks . | . . . Terminals . | . . . Fabricators . | . . . Repair Stations . | . . . Recycling Units . | . . . Scanalyzers . | . . . Garrison Access . | . . . Data Cores Recovered . | . . . Used . | . . . Hacking Detections 1 | . 1 . Full Trace Events . | . . . Feedback Events . | . . . Feedback Blocked . | . . . Robot Schematics Acquired . | . . . Robots Built . | . . . Matter . | . . . Time . | . . . Total Robot Build Rating . | . . . Part Schematics Acquired . | . . . Parts Built . | . . . Matter . | . . . Time . | . . . Total Part Build Rating . | . . . Parts Repaired . | . . . Time . | . . . Parts Recycled . | . . . Recycled Matter . | . . . Retrieved Matter . | . . . Retrieved Components . | . . . Parts Scanalyzed . | . . . Part Schematics Acquired . | . . . Parts Damaged . | . . . Bothacking | -11 -10 -10 ------------ Run | Scr Mat Min Used RIF Installer . | . . . Robots Hacked . | . . . Non-combat . | . . . Combat . | . . . Robot Hacks Applied . | . . . Relay Couplers Released . | . . . Robots Rewired . | . . . Allies Hacked . | . . . Hacks Repelled . | . . . Allies | -11 -10 -10 -------- Run | Scr Mat Min Total Allies . | . . . Largest Group . | . . . Highest-Rated Group . | . . . Highest-Rated Ally . | . . . Total Orders . | . . . Ally Attacks . | . . . Total Damage . | . . . Kills . | . . . Allies Corrupted . | . . . Allies Melted . | . . . Intel | -11 -10 -10 ------- Run | Scr Mat Min Robot Analysis Total . | . . . Derelict Logs Recovered 1 | . . 1 Drone Launches . | . . . Drone Recoveries . | . . . Exploration | -11 -10 -10 ------------- Run | Scr Mat Min Turns Passed 709 | 187 271 251 Spaces Moved 498 | 90 146 262 Core 21 | 2 . 19 Treads 273 | 88 146 39 Legs . | . . . Wheels . | . . . Hover . | . . . Flight 204 | . . 204 Fastest Speed 37 | 50 160 37 Average Speed 106 | 157 160 59 Slowest Speed 160 | 160 160 160 Overloaded Moves . | . . . Propulsion Burnouts . | . . . Robots Hopped 2 | . . 2 Cave-ins Triggered . | . . . Exploration Rate (%) 23 | 7 21 43 Regions Visited 2 Branch Regions 1 Pre-discovered Areas . | . . . Known Exits Taken . | . . . Unknown Exits Taken 2 | 1 1 . Scrap Searched . | . . . Spaces Dug . | . . . Terrain Destroyed . | . . . Melee . | . . . Projectile . | . . . AOE . | . . . Terrain Rammed . | . . . Walls Destroyed . | . . . Machines Disabled . | . . . Actions | -11 -10 -10 --------- Run | Scr Mat Min Total 591 | 118 160 313 Wait 19 | 4 . 15 Move 492 | 89 145 258 Hop 2 | . . 2 Pick Up 12 | 7 2 3 Fast Attach . | . . . Attach 13 | 7 . 6 Detach 1 | 1 . . Swap . | . . . Drop . | . . . Fire 47 | 10 13 24 Melee . | . . . Ram 3 | . . 3 Kick . | . . . Crush 2 | . . 2 Escape Stasis . | . . . Rewire . | . . . Trap . | . . . Miscellaneous . | . . . Route ------- -11/Scrapyard -10/Materials -10/Mines History --------- Turn | Location | Event 18 | -11/Scrapyard | Discovered new exit (range 16) 188 | -11/Scrapyard | Entered Materials 303 | -10/Materials | Build established: Mutant 406 | -10/Materials | Discovered new exit (range 16) 459 | -10/Materials | Entered Mines 475 | -10/Mines | Met a Derelict bent on vengeance 523 | -10/Mines | Assembled infested the area 565 | -10/Mines | Core integrity fell below 50% 616 | -10/Mines | Learned Materials terminal intel 625 | -10/Mines | Core integrity fell below 20% 635 | -10/Mines | Lost 6 parts (1p1n4w) 710 | -10/Mines | Destroyed by as-61121 with Assembled Heavy Rifle Last Messages --------------- 00585_ S-10 Pest destroyed. 00586_ Sml. Laser destroyed. 00587_ Acquired 5 matter. 00588_ R-06 Scavenger collects Lgt. Assault Rifle. 00589_ as-62813 destroyed. 00591_ Acquired 2 matter. 00594_ K-01 Serf collects debris. 00596_ Acquired Lgt. Ion Engine. 00598_ Acquired Flight Unit. 00604_ Sml. Laser destroyed. 00616_ Acquired derelict log, extracted data. Data stored: Materials terminal intel. Flying robots can pass through spaces occupied by others, even hostile robots. 00638_ Acquired 18 matter. 00639_ Acquired 16 matter. 00639_ Acquired 6 matter. 00698_ T-07 Excavator is excavating. 00702_ Tractor Beam destroyed. 00706_ T-07 Excavator is excavating. Map ----- +----------------------------------------------------+ | ??# ##???????# #?########?????????????????????? | | ??# ####????# #??????????????????????????????? | | ??# ##???# #????????#####?????????????????? | | ??## #???# ########## #?????????????????? | | ???# """" #???# #?????????????????? | | ???# """" ##??# #??????? ????????? | | ???# """" #??# ####### ##??????? ????????? | | ???## #?## #?????## ##??????? #???????? | | ????## ##?# #??????# ##?????# #???????? | | ?????# #??# #?????## #?????# #???????# | | ?????## ##?## ##???## ##????# #?????## | | ??????# #??# #??## ##???# ###### | | ??????# ##??# " #?## #???# | | ??????## ###### ### #???# | | ???????# ## ### ##??# | | ???????# ## ########?# ## #??# | | ???????# ## #???????## ###### #??# | | ???????# ## #???????# #????# ##??# | | ???????# #???????# ##????# ###### | | ???????######??????# ##?????# | | ??????????????????# ##??????#$ #????? | | ??????????????????# #????????##### ## ##????? | | ??????????????????###?????????????# ### ##?????? | | ??????????????????????????????????# #?#####??????? | | ????????????????????############### #????????????? | | ????????????????????# t @ a #????????????? | | ????????????????????## ############????????????? | | ?????????????????????####????????????????????????? | | ?????????????????????????????????????????????????? | | ?????????????????????????????????????????????????? | | ?????????????????????????????????????????????????? | | | | | | | | | | | | | | | | | | | | | | | | | | | | | | | | | | | | | | | +----------------------------------------------------+ Best States ------------- Heat Dissipation 25 Energy Generation 10 Energy Capacity 250 Matter Stores 300 Matter Capacity 300 Sight Range 16 Terrain Scan Density 10 Evasion (%) 62 Recoil Reduction 2 Item Schematics ----------------- None Robot Schematics ------------------ None Fabricated ------------ Nothing Alien Tech Used ----------------- None Achievements -------------- None Challenges ------------ None Game ------ Seed MeleeOmegaEdition Manual? 0 Play Time 00:20:11 Cumulative 5.9 hours Start 2021.01.29 @ 04:34:04 End 2021.01.29 @ 06:19:06 Sessions 1 Manual Loads 0 Difficulty Rogue Special Mode None Game No. 10 Rogue 10 Adventurer 0 Explorer 0 Win Type - Total 0 Types 0/0/0/0/0/0/0/0/0 Lore% 5 Gallery% 6 Achievement% 9 Wizard Run 0 Options --------- ASCII 0 Keyboard 1 Movement Numpad Keybinds 0 Fullscreen 0 Font 20/Smallcaps Map View 76x50 Tactical HUD 1 Map Filters NONE Filters NONE Steam 1 RUN: 1ddbafb5-ae45-428c-a8a7-1374499aa158